Cogmind - Beta 13 X1 @@@ ROGUE MODE // 2023.07.25 @ 20:09:47 Player: Cracklepappy Result: Destroyed by Autobeam Turret with Autobeam Performance ------------- Evolutions (0) 0 Regions Visited (3) 600 Robots Destroyed (47) 235 Value Destroyed (1181) 1181 Prototype IDs (4) 80 Alien Tech Used (0) 0 Bonus (0) 0 TOTAL SCORE: 2096 Bonus ------- None Cogmind --------- Core Integrity 0/250 Matter 264/300 Energy 8/100 System Corruption 2% Temperature Cool (6) Movement Treading (160) Location -10/Subcaves Parts ------- > --- POWER (1) -------- (None) > --- PROPULSION (2) --- Light Treads Light Treads > --- UTILITY (2) ------ Large Storage Unit > --- WEAPON (2) ------- Subdweller Beam Cannon Subdweller Machine Gun > --- INVENTORY (15) --- Medium Storage Unit Subdweller Optics Experimental Sensor Array Subdweller Laser Subdweller Laser Subdweller Laser Subdweller Beam Cannon Subdweller Beam Cannon Battle Rifle Subdweller Machine Gun Battle Cannon Ripper Shrapnel Trap Peak State ------------ > --- POWER ------------ Ion Engine > --- PROPULSION ------- Light Treads Light Treads > --- UTILITY ---------- Large Storage Unit Subdweller Optics > --- WEAPON ----------- Subdweller Beam Cannon Subdweller Beam Cannon > --- INVENTORY -------- Light Ion Engine Light Treads Light Treads Medium Storage Unit Subdweller Optics Experimental Sensor Array Subdweller Laser Subdweller Laser Subdweller Beam Cannon Battle Rifle Subdweller Machine Gun Battle Cannon Mining Laser Ripper [Rating: 13] Favorites ----------- Power Ion Engine Engine Ion Engine Propulsion Light Treads Treads Light Treads Wheel Wheel Utility Large Storage Unit Device Subdweller Optics Storage Large Storage Unit Protection Light Armor Plating Weapon Subdweller Beam Cannon Energy Gun EM Pulse Gun Energy Cannon Subdweller Beam Cannon Ballistic Gun Assault Rifle Ballistic Cannon Light Cannon Launcher Grenade Launcher Special Weapon Mining Laser Build | -11 -10 -10 -10 ------- Run | Jun Mat Min Sub Slots Evolved . | . . . . Power . | . . . . Propulsion . | . . . . Utility . | . . . . Weapon . | . . . . Parts Attached 52 | 9 11 4 28 Power 4 | 1 1 . 2 Engine 4 | 1 1 . 2 Core . | . . . . Reactor . | . . . . Propulsion 8 | 3 . 1 4 Treads 7 | 2 . 1 4 Leg . | . . . . Wheel 1 | 1 . . . Hover . | . . . . Flight . | . . . . Utility 9 | 2 4 . 3 Device 3 | 1 . . 2 Storage 3 | 1 2 . . Processor . | . . . . Hackware . | . . . . Protection 3 | . 2 . 1 Artifact . | . . . . Weapon 31 | 3 6 3 19 Energy Gun 1 | 1 . . . Energy Cannon 7 | . . . 7 Ballistic Gun 7 | 2 2 . 3 Ballistic Cannon 6 | . 1 2 3 Launcher 8 | . 2 . 6 Special Weapon 2 | . 1 1 . Impact Weapon . | . . . . Slashing Weapon . | . . . . Piercing Weapon . | . . . . Special Melee Weapon . | . . . . Unidentified Prototypes . | . . . . Parts Lost 13 | . 2 . 11 Power 3 | . . . 3 Propulsion 3 | . . . 3 Utility 5 | . 2 . 3 Weapon 2 | . . . 2 Highest Loss Streak 4 | . 1 . 4 To Critical Strikes 1 | . . . 1 Average Slot Usage (%) 99 | . 99 99 99 Engine 13 | . 14 14 13 Treads 28 | . 28 28 28 Device 3 | . . . 4 Storage 14 | . 14 14 14 Protection 10 | . 12 14 9 Energy Cannon 15 | . . . 23 Ballistic Gun 7 | . 25 1 1 Ballistic Cannon 3 | . . 26 2 Launcher 1 | . . . 1 Naked Turns . | . . . . Heaviest Build 44 | 13 33 34 44 Greatest Support 40 | 40 40 40 40 Greatest Overweight (x) 1 | . . . 1 Average Overweight (x) . | . . . . Largest Inventory Capacity 15 | 8 15 15 15 Average Capacity 13 | 7 12 15 15 Most Carried 15 | 8 15 15 15 Average Carried 12 | 6 10 15 14 Final Capacity 15 | 8 15 15 15 Final Carried 15 | 8 15 15 13 Class Distribution -------------------- 60% | Mutant 39% | Scavenger-Mutant Dominant Class ---------------- Mutant | -10/Materials Mutant | -10/Mines Scavenger-Mutant | -10/Subcaves Resources | -11 -10 -10 -10 ----------- Run | Jun Mat Min Sub Matter Collected 1445 | 356 446 107 536 Remotely . | . . . . Salvage Created 1669 | 212 748 75 634 Parts 103 | 21 42 4 36 Haulers Intercepted 2 | . 2 . . Recyclers Shooed 1 | . 1 . . Parts Field Recycled . | . . . . Retrieved Matter . | . . . . Parts Self-Destructed 2 | . . . 2 Prevented . | . . . . Kills | -11 -10 -10 -10 ------- Run | Jun Mat Min Sub Combat Hostiles Destroyed 33 | . 16 2 15 Guns 14 | . 11 . 3 Cannons 11 | . . 2 9 AOE 7 | . 5 . 2 Classes Destroyed 10 | 2 5 1 2 Worker 1 | . 1 . . Tunneler 7 | 7 . . . Hauler 2 | . 2 . . Recycler 3 | 1 2 . . Watcher 1 | . 1 . . Swarmer 8 | . 6 . 2 Grunt 10 | . 10 . . Sentry 2 | . . 2 . Artisan 2 | . . . 2 Subdweller 13 | . . . 13 Best Kill Streak 4 | 2 4 1 3 Combat Bots Only 3 | . 3 1 3 Max Kills in Single Turn 3 | 1 3 1 1 Gunslinging . | . . . . Exploded 2 | . 2 . 1 Melee . | . . . . Uniques/NPCs Destroyed . | . . . . Combat | -11 -10 -10 -10 -------- Run | Jun Mat Min Sub Damage Taken 1836 | . 518 119 1199 Core 252 | . 117 15 120 Absorbed by Shields . | . . . . Core Remaining (%) 100 | 100 . . . Volleys Fired 158 | 11 59 8 80 Largest 2 | 2 2 2 2 Hottest 160 | 40 100 70 160 Shots Fired 250 | 22 105 13 110 Gun 150 | 22 92 . 36 Cannon 79 | . . 13 66 Launcher 15 | . 7 . 8 Special 6 | . 6 . . Kinetic 180 | 22 92 13 53 Thermal 55 | . 6 . 49 Explosive 15 | . 7 . 8 Electromagnetic . | . . . . Robot Hit Streak 19 | 4 9 10 19 Robot Miss Streak 5 | 1 3 . 5 Penetration Max . | . . . . Secondary Targets 1 | . 1 . . Max Gunslinging Chain 1 | . 1 . . Shots Hit Robots 153 | 13 62 9 69 Core Hits 73 | 8 34 4 27 Critical Kills 3 | . . . 3 Critical Parts Destroyed . | . . . . Critical Strikes 3 | . . . 3 Meltdown 2 | . . . 2 Destroy 1 | . . . 1 Melee Attacks . | . . . . Impact . | . . . . Slashing . | . . . . Piercing . | . . . . Sneak Attacks . | . . . . Combat Hostiles . | . . . . Follow-up Attacks . | . . . . Damage Inflicted 3144 | 166 1125 157 1696 Guns 1391 | 166 784 . 441 Cannons 991 | . . 157 834 Explosions 741 | . 320 . 421 Melee . | . . . . Ramming 21 | . 21 . . Kinetic 1756 | 166 784 157 649 Thermal 626 | . . . 626 Explosive 741 | . 320 . 421 Electromagnetic . | . . . . Impact . | . . . . Slashing . | . . . . Piercing . | . . . . Highest Corruption 2 | . 2 2 2 Average Corruption 1 | . 1 2 2 Corruption Purged . | . . . . Corruption Blocked . | . . . . Effects 64 | . 6 4 54 Message Errors 16 | . 1 1 14 Matter Fused 14 | . 2 . 12 Heat Flow Errors 11 | . . 1 10 Energy Discharges 9 | . 1 . 8 Parts Fused 1 | . . . 1 Data Loss (minor) 6 | . 1 1 4 Data Loss (major) 3 | . 1 . 2 Misfires 2 | . . . 2 Alerts 2 | . . 1 1 Overload Shots . | . . . . Overflow Damage 27 | . 20 . 7 Projectiles . | . . . . Explosions 27 | . 20 . 7 Melee . | . . . . Knockbacks 2 | . . . 2 Impact . | . . . . Kinetic 2 | . . . 2 Secondary . | . . . . Self-Inflicted Damage 59 | . . . 59 Shots 2 | . . . 2 Rammed 3 | . 3 . . Targets Rammed 3 | . 3 . . Kicked . | . . . . Crushed . | . . . . Highest Temperature 301 | . 128 83 301 Average Temperature 61 | . 38 32 78 Received Heat Transfer 1022 | . 231 36 755 Effects 1 | . . . 1 Interference 1 | . . . 1 Siege Activations . | . . . . Robots Corrupted . | . . . . Combat Hostiles . | . . . . Parts Fried . | . . . . Impact Corruptions . | . . . . Robots Melted 2 | . . . 2 Combat Hostiles 1 | . . . 1 Parts Melted 3 | . . . 3 Heat Transferred 851 | . . . 851 Parts Sabotaged . | . . . . Parts Stolen . | . . . . Parts Stripped . | . . . . Power Chain Reactions . | . . . . Missiles Intercepted . | . . . . Alert | -11 -10 -10 -10 ------- Run | Jun Mat Min Sub Peak Influence 211 | 35 211 72 . Initial 15 | . 3 15 . Average 87 | 12 126 45 . Maximum Alert Level 1 | . 1 . . Low Security (%) 91 | 100 86 100 . Level 1 8 | . 13 . . Level 2 . | . . . . Level 3 . | . . . . Level 4 . | . . . . Level 5 . | . . . . High Security . | . . . . Max Security . | . . . . Squads Dispatched 3 | . 3 . . Investigation 3 | . 3 . . Extermination . | . . . . Reinforcement . | . . . . Assault . | . . . . Garrison . | . . . . Intercept . | . . . . Searches Triggered . | . . . . Construction Impeded . | . . . . Haulers Reinforced . | . . . . Active Scanning Responses . | . . . . Cargo Convoy Interrupts . | . . . . Stealth | -11 -10 -10 -10 --------- Run | Jun Mat Min Sub Distress Signals . | . . . . Communications Jammed . | . . . . Distress Signals . | . . . . Times Spotted 44 | . 26 2 16 Peak Tracking Total 6 | . 3 2 6 Tactical Retreats 2 | . . . 2 Traps | -11 -10 -10 -10 ------- Run | Jun Mat Min Sub Traps Triggered 6 | . 4 . 2 Indirectly . | . . . . Trap Hack Attempts . | . . . . Triggered . | . . . . Disarmed 6 | . 6 . . Reprogrammed . | . . . . Reused . | . . . . Traps Extracted . | . . . . Installed . | . . . . Triggered . | . . . . Most Traps Carried 1 | . . . 1 Machines | -11 -10 -10 -10 ---------- Run | Jun Mat Min Sub Machines Disabled 5 | . 5 . . Max in Single Turn 1 | . 1 . . Machines Repaired . | . . . . Machines Sabotaged . | . . . . Overloaded Fab Kills . | . . . . Hacking | -11 -10 -10 -10 --------- Run | Jun Mat Min Sub Machines Accessed 9 | . 8 . 1 Terminals 7 | . 7 . . Fabricators . | . . . . Repair Stations . | . . . . Recycling Units 1 | . 1 . . Scanalyzers . | . . . . Garrison Access . | . . . . Total Hacks 25 | . 21 . 4 Successful 10 | . 6 . 4 Failed 14 | . 14 . . Catastrophic 3 | . 3 . . Database Lockouts 1 | . 1 . . Manual 10 | . 10 . . Terminals 18 | . 18 . . Fabricators . | . . . . Repair Stations . | . . . . Recycling Units 3 | . 3 . . Scanalyzers . | . . . . Garrison Access . | . . . . Terminal Hacks 10 | . 6 . 4 Record 4 | . . . 4 Part Schematic 1 | . 1 . . Prototype ID Bank 2 | . 2 . . Locate Traps 1 | . 1 . . Disarm Traps 1 | . 1 . . Hauler Manifests 1 | . 1 . . Fabricator Hacks . | . . . . Repair Station Hacks . | . . . . Recycling Unit Hacks . | . . . . Scanalyzer . | . . . . Garrison Access Hacks . | . . . . Unauthorized Hacks . | . . . . Terminals . | . . . . Fabricators . | . . . . Repair Stations . | . . . . Recycling Units . | . . . . Scanalyzers . | . . . . Garrison Access . | . . . . Data Cores Recovered . | . . . . Used . | . . . . Hacking Detections 8 | . 8 . . Full Trace Events 2 | . 2 . . Feedback Events . | . . . . Feedback Blocked . | . . . . Robot Schematics Acquired . | . . . . Robots Built . | . . . . Authchips . | . . . . Time . | . . . . Total Robot Build Rating . | . . . . Part Schematics Acquired 1 | . 1 . . Parts Built . | . . . . Authchips . | . . . . Time . | . . . . Total Part Build Rating . | . . . . Parts Repaired . | . . . . Time . | . . . . Parts Recycled . | . . . . Recycled Matter . | . . . . Retrieved Matter . | . . . . Retrieved Components . | . . . . Parts Scanalyzed . | . . . . Part Schematics Acquired . | . . . . Parts Damaged . | . . . . Bothacking | -11 -10 -10 -10 ------------ Run | Jun Mat Min Sub Used RIF Installer . | . . . . Robots Hacked . | . . . . Non-combat . | . . . . Combat . | . . . . Robot Hacks Applied . | . . . . Relay Couplers Released . | . . . . Fabnet Peak Effective % . | . . . . Robots Rewired . | . . . . Allies Hacked . | . . . . Hacks Repelled . | . . . . Allies | -11 -10 -10 -10 -------- Run | Jun Mat Min Sub Total Allies . | . . . . Largest Group . | . . . . Highest-Rated Group . | . . . . Highest-Rated Ally . | . . . . Total Orders . | . . . . Ally Attacks . | . . . . Total Damage . | . . . . Kills . | . . . . Allies Corrupted . | . . . . Allies Melted . | . . . . Intel | -11 -10 -10 -10 ------- Run | Jun Mat Min Sub Robot Analysis Total . | . . . . Derelict Logs Recovered 2 | . . 1 1 Drone Launches . | . . . . Drone Recoveries . | . . . . Exploration | -11 -10 -10 -10 ------------- Run | Jun Mat Min Sub Turns Passed 6865 | 523 1614 534 4194 Spaces Moved 3184 | 296 836 277 1775 Core 2 | 2 . . . Treads 3181 | 293 836 277 1775 Legs . | . . . . Wheels 1 | 1 . . . Hover . | . . . . Flight . | . . . . Fastest Speed 50 | 50 160 160 160 Average Speed 193 | 158 160 160 221 Slowest Speed 240 | 160 160 160 240 Overloaded Moves . | . . . . Propulsion Burnouts . | . . . . Robots Hopped . | . . . . Cave-ins Triggered . | . . . . Exploration Rate (%) 65 | 14 99 64 83 Regions Visited 3 Branch Regions 2 Pre-discovered Areas 1 | . . . 1 Known Exits Taken . | . . . . Unknown Exits Taken 3 | 1 1 1 . Scrap Searched 9 | . . 1 8 Spaces Dug 30 | . 16 . 14 Terrain Destroyed 78 | . 38 . 40 Melee . | . . . . Projectile 5 | . . . 5 AOE 73 | . 38 . 35 Terrain Rammed . | . . . . Walls Destroyed . | . . . . Machines Disabled . | . . . . Actions | -11 -10 -10 -10 --------- Run | Jun Mat Min Sub Total 3614 | 323 999 359 1933 Wait 143 | . 62 60 21 Move 3181 | 295 835 276 1775 Hop . | . . . . Pick Up 45 | 7 17 4 17 Fast Attach 12 | 8 1 2 1 Attach 10 | . 1 . 9 Detach 1 | 1 . . . Swap 30 | 1 9 2 18 Drop 31 | . 12 7 12 Fire 158 | 11 59 8 80 Melee . | . . . . Ram . | . . . . Kick . | . . . . Crush 3 | . 3 . . Escape Stasis . | . . . . Rewire . | . . . . Trap . | . . . . Miscellaneous . | . . . . Route ------- -11/Junkyard -10/Materials (discovered 6 exits: [*Mat x3] / [*Min x2] / *Sub) -10/Mines -10/Subcaves (discovered 1 exit: [*Mat]) History --------- Turn | Location | Event 9 | -11/Junkyard | Discovered new exit (range 15) 524 | -11/Junkyard | Entered Materials 525 | -10/Materials | Build established: Mutant 561 | -10/Materials | Central database locked down 791 | -10/Materials | Discovered new exit (range 3) 1166 | -10/Materials | Discovered new exit (range 11) 1288 | -10/Materials | Discovered new exit (range 15) 1432 | -10/Materials | Discovered new exit (range 6) 1459 | -10/Materials | Discovered new exit (range 16) 1619 | -10/Materials | Discovered new exit (range 7) 2138 | -10/Materials | Entered Mines 2188 | -10/Mines | Core integrity fell below 50% 2276 | -10/Mines | Joined a pair of Derelicts in attacking an 0b10 outpost 2341 | -10/Mines | Found a damaged Exp. Sensor Array with a note attached 2344 | -10/Mines | Found Prototype Device 2354 | -10/Mines | Learned Materials emergency access door positions 2652 | -10/Mines | Discovered new exit (range 5) 2672 | -10/Mines | Entered Subcaves 2883 | -10/Subcaves | Learned location of 2 exits from Materials 3022 | -10/Subcaves | A swath of the cavern ceiling suddenly collapsed 3104 | -10/Subcaves | Discovered new exit (range 9) 4120 | -10/Subcaves | Core integrity fell below 20% 4153 | -10/Subcaves | Lost 3 parts (1p1n1u) 4410 | -10/Subcaves | Build established: Scavenger-Mutant 4675 | -10/Subcaves | Visited Clippyterm 4682 | -10/Subcaves | Learned Factory garrison access intel 5210 | -10/Subcaves | Shifting Twisted Machinery released Sub. Beam Cannon 5543 | -10/Subcaves | Ambushed by angry Subdweller bent on revenge 5686 | -10/Subcaves | Shifting Twisted Machinery released Shrapnel Trap 6544 | -10/Subcaves | Learned location of Zion (-7) 6544 | -10/Subcaves | Met a Zionite searching for "candidates" 6826 | -10/Subcaves | Shifting Twisted Machinery released Sub. Power Source 6829 | -10/Subcaves | Shifting Twisted Machinery released Riot Gun 6866 | -10/Subcaves | Destroyed by Autobeam Turret with Autobeam Last Messages --------------- 06746_ System corrupted: Component data lost. 06772_ System corrupted: Heat flow error (+140). Sub. Power Source falls loose from the Twisted Machinery. Riot Gun falls loose from the Twisted Machinery. 06832_ Searching scrap... 06832_ Found Sub. Beam Cannon. 06832_ Found Battle Cannon. 06832_ Found 31 Matter. 06837_ Dropped Sub. Beam Cannon. 06838_ Y6MXY08#Y|#90W:CD=EA6JN 06845_ Lgt. Treads destroyed. 06846_ Lgt. Ion Engine destroyed. 06850_ Destroyed Flight Unit. 06853_ Lgt. Treads destroyed. 06854_ S-10 Pest suffers critical hit (Destroy). 06854_ S-10 Pest destroyed. 06861_ Flight Unit fries itself beyond repair. 06863_ Lgt. Ion Engine fries itself beyond repair. 06864_ ECM Suite destroyed. 06866_ S-10 Pest destroyed. Map ----- +----------------------------------------------------+ | ????????# # #?### ### ##???######### | | ????????#### ### ##????????????? | | ???????????##### # # ### #?????????????? | | ???????????????# ######?## #?????????????? | | ???????????????###???????## ########?????????????? | | ??????????????????????????###????????????????????? | | ?????????????????????????????????????????????????? | | ?????????????????????????????????????????????????? | | ?????????????????????????????????????????????????? | | ?????????????????????????????????????????????????? | | ??????????????????????? ???????????????????????? | | ?????????????????????? ???????????????????????? | | ?????????????????????? ???????????????????????? | | ??????????????????????# ???????????????????????? | | ??????????????????????# ???????????????????????? | | ??????????????????????# ??????????######???????? | | ??????????????????????# ##???????## #???##### | | ??????????????????????# ####???## #??## | | ?????????????????????##s% " #???# ##?# | | ?????????????????????# [%*"" ##### ### | | ?????????????????????#" % ""* ## | | ??????????????????????" "" # | | ??????????#####????????" ##"" ## | | ?????????## ###?????# # """ #? | | ?????????# #?????# ##" ### # | | ?????????# #??????#@ ## ##?# # | | ?????????## ##?????##%] # # # # ##??#### | | ??????????## ###????# " #???## ## #????## | | ??###??????# #????# " "#??## ### ##???# | | ??# "#?????## ##????## ##?## ?# #???# | | ?? "" #?????# #?????# " ##?# ??## #???## | | ??#" "?????## ####??#| *#?## #### #????# | | ## " ##????# ##?## %"##### ## #????? | | " "" ##???# ####=!!# ###### #????? | | """"" ##??# " #### #####??### | | " "" ##?#=|= ###??????# | | [ "" ###% % ### ###??????## | | ?# "" * * ##?#### ##??????## | | ## ! ####?????### #???????? | | " ### #"#?????????# #??????? | | "" ## #?######?????????# ### #??????? | | """ ### #???????????????# ##??# #??????? | | "" ##? ?????????????# #????####??????? | | # ####??## ????????????# #??????????????? | | #????????#######???????????########??????????????? | | ?????????????????????????????????????????????????? | | ?????????????????????????????????????????????????? | | ?????????????????????????????????????????????????? | | ?????????????????????????????????????????????????? | | ?????????????????????????????????????????????????? | +----------------------------------------------------+ Best States ------------- Heat Dissipation 25 Energy Generation 10 Energy Capacity 250 Matter Stores 300 Matter Capacity 300 Sight Range 21 Terrain Scan Density 10 ECM Strength 1 Armor Coverage 150 Evasion (%) 40 Recoil Reduction 2 Item Schematics ----------------- Huge Storage Unit | -10/Materials | Hacked Robot Schematics ------------------ None Fabricated ------------ Nothing Alien Tech Used ----------------- None Achievements -------------- None Challenges ------------ None Game ------ Seed DynamicMultinovaDatajack Manual? 0 Play Time 00:31:14 Cumulative 561.4 hours Start 2023.07.24 @ 22:40:12 End 2023.07.25 @ 20:09:47 Sessions 3 Manual Loads 0 Difficulty Rogue Special Mode None Game No. 386 Rogue 386 Adventurer 0 Explorer 0 Win Type - Total 18 Types 9/3/2/0/0/1/2/1/0 Lore% 83 Gallery% 91 Achievement% 79 Wizard Run 0 Options --------- ASCII 0 Keyboard 0 Movement Numpad Keybinds 0 Fullscreen 2 Font 24/Terminus Map View 76x50 Tactical HUD 1 Map Filters NONE Filters NONE Steam 1 RUN: 4dbdd648-c326-4735-b4f9-e9eb94430b23